Department Family,Entity,Date,Expense Type,Expense area,Supplier,Transaction Number,Amount in Sterling �s incl VAT ,Supplier VAT Registration number
NHS,Glos Hospitals NHS Foundation Trust,05/04/2022,Finished processed goods,Inventories,Roche Products Limited,000246-100,"67,260.92", 
NHS,Glos Hospitals NHS Foundation Trust,20/04/2022,Finished processed goods,Inventories,Alloga UK Limited,000246-126,"27,120.00", 
NHS,Glos Hospitals NHS Foundation Trust,05/04/2022,Finished processed goods,Inventories,Novartis Pharmaceuticals UK Limited,000246-89,"42,739.20", 
NHS,Glos Hospitals NHS Foundation Trust,05/04/2022,Finished processed goods,Inventories,Bristol Myers Squibb Pharmaceuticals Limited,000246-93,"36,101.52", 
NHS,Glos Hospitals NHS Foundation Trust,05/04/2022,Finished processed goods,Inventories,Bristol Myers Squibb Pharmaceuticals Limited,000246-94,"83,810.34", 
NHS,Glos Hospitals NHS Foundation Trust,05/04/2022,Finished processed goods,Inventories,Bristol Myers Squibb Pharmaceuticals Limited,000246-95,"36,101.52", 
NHS,Glos Hospitals NHS Foundation Trust,05/04/2022,Finished processed goods,Inventories,Alliance Healthcare,000248-296,"69,037.80", 
NHS,Glos Hospitals NHS Foundation Trust,12/04/2022,Finished processed goods,Inventories,Bayer,000251-451,"32,848.42", 
NHS,Glos Hospitals NHS Foundation Trust,12/04/2022,Finished processed goods,Inventories,Bayer,000251-452,"32,848.42", 
NHS,Glos Hospitals NHS Foundation Trust,20/04/2022,Finished processed goods,Inventories,Bayer,000251-456,"32,848.42", 
NHS,Glos Hospitals NHS Foundation Trust,20/04/2022,Finished processed goods,Inventories,Roche Products Limited,000251-458,"55,764.00", 
NHS,Glos Hospitals NHS Foundation Trust,20/04/2022,Finished processed goods,Inventories,Alloga UK Limited,000251-549,"27,120.00", 
NHS,Glos Hospitals NHS Foundation Trust,20/04/2022,Finished processed goods,Inventories,Alloga UK Limited,000251-551,"45,000.00", 
NHS,Glos Hospitals NHS Foundation Trust,12/04/2022,Finished processed goods,Inventories,Qualasept Ltd t/a Bath ASU,000251-577,"75,335.52", 
NHS,Glos Hospitals NHS Foundation Trust,12/04/2022,Finished processed goods,Inventories,Qualasept Ltd t/a Bath ASU,000251-581,"37,433.76", 
NHS,Glos Hospitals NHS Foundation Trust,26/04/2022,Finished processed goods,Inventories,Bayer,000251-8,"50,185.08", 
NHS,Glos Hospitals NHS Foundation Trust,12/04/2022,Finished processed goods,Inventories,Janssen Cilag Limited,000252-30,"25,036.23", 
NHS,Glos Hospitals NHS Foundation Trust,26/04/2022,Finished processed goods,Inventories,Octapharma Limited,000253-59,"35,520.00", 
NHS,Glos Hospitals NHS Foundation Trust,12/04/2022,Finished processed goods,Inventories,Bristol Myers Squibb Pharmaceuticals Limited,000253-62,"36,101.52", 
NHS,Glos Hospitals NHS Foundation Trust,12/04/2022,Finished processed goods,Inventories,Alliance Healthcare,000254-100,"69,037.80", 
NHS,Glos Hospitals NHS Foundation Trust,20/04/2022,Finished processed goods,Inventories,Janssen Cilag Limited,000254-157,"47,692.80", 
NHS,Glos Hospitals NHS Foundation Trust,20/04/2022,Finished processed goods,Inventories,Janssen Cilag Limited,000254-158,"25,960.42", 
NHS,Glos Hospitals NHS Foundation Trust,26/04/2022,Finished processed goods,Inventories,Novartis Pharmaceuticals UK Limited,000254-61,"42,739.20", 
NHS,Glos Hospitals NHS Foundation Trust,20/04/2022,Finished processed goods,Inventories,Bayer,000254-64,"32,848.42", 
NHS,Glos Hospitals NHS Foundation Trust,20/04/2022,Finished processed goods,Inventories,Bristol Myers Squibb Pharmaceuticals Limited,000254-66,"47,160.00", 
NHS,Glos Hospitals NHS Foundation Trust,20/04/2022,Finished processed goods,Inventories,Roche Products Limited,000254-69,"55,764.00", 
NHS,Glos Hospitals NHS Foundation Trust,26/04/2022,Finished processed goods,Inventories,Roche Products Limited,000254-70,"67,956.00", 
NHS,Glos Hospitals NHS Foundation Trust,20/04/2022,Finished processed goods,Inventories,Aah Pharmaceuticals Limited,000259-104,"32,404.32", 
NHS,Glos Hospitals NHS Foundation Trust,26/04/2022,Finished processed goods,Inventories,Alloga UK Limited,000259-275,"45,000.00", 
NHS,Glos Hospitals NHS Foundation Trust,20/04/2022,Finished processed goods,Inventories,Alloga UK Limited,000259-276,"27,120.00", 
NHS,Glos Hospitals NHS Foundation Trust,26/04/2022,Finished processed goods,Inventories,Bayer,000262-288,"32,848.42", 
NHS,Glos Hospitals NHS Foundation Trust,26/04/2022,Finished processed goods,Inventories,Roche Products Limited,000262-294,"43,764.48", 
NHS,Glos Hospitals NHS Foundation Trust,26/04/2022,Finished processed goods,Inventories,Roche Products Limited,000262-295,"54,990.00", 
NHS,Glos Hospitals NHS Foundation Trust,26/04/2022,Finished processed goods,Inventories,Roche Products Limited,000262-296,"29,402.89", 
NHS,Glos Hospitals NHS Foundation Trust,26/04/2022,Finished processed goods,Inventories,Alloga UK Limited,000263-13,"37,945.40", 
NHS,Glos Hospitals NHS Foundation Trust,26/04/2022,Finished processed goods,Inventories,Alloga UK Limited,000263-9,"26,940.00", 
NHS,Glos Hospitals NHS Foundation Trust,05/04/2022,X-Ray Equipment : Maintenance,Nuclear Medicine,Supply Chain Coordination Ltd - Maint. (201),882656,"69,211.44", 
NHS,Glos Hospitals NHS Foundation Trust,20/04/2022,Admin & Clerical - Agency,Clinical Coders,Monmouth Partners Limited,890992,"27,900.00", 
NHS,Glos Hospitals NHS Foundation Trust,20/04/2022,Admin & Clerical - Agency,Clinical Coders,Monmouth Partners Limited,890993,"27,900.00", 
NHS,Glos Hospitals NHS Foundation Trust,20/04/2022,Admin & Clerical - Agency,Clinical Coders,Monmouth Partners Limited,890994,"27,900.00", 
NHS,Glos Hospitals NHS Foundation Trust,26/04/2022,Laboratory Reagents,SCBU - GRH,Chrystal Consulting Limited,891101,"86,474.40", 
NHS,Glos Hospitals NHS Foundation Trust,12/04/2022,Medical & Surgical Equipment Maintenance Contracts,Endoscopy CGH - Gastro (from July 2021),Supply Chain Coordination Ltd - Maint. (201),892084,"74,198.31", 
NHS,Glos Hospitals NHS Foundation Trust,12/04/2022,Medical & Surgical Equipment Maintenance Contracts,Endoscopy GRH - Gastro (from July 2021),Supply Chain Coordination Ltd - Maint. (201),892085,"274,944.81", 
NHS,Glos Hospitals NHS Foundation Trust,05/04/2022,Computer Hardware Purchases,IT Recharges,XMA Limited,893031,"36,133.44", 
NHS,Glos Hospitals NHS Foundation Trust,05/04/2022,Regular recharges,Scheduled Recharges from NPX,Gloucestershire Health and Care NHS FT Pr GCS,895518,"274,352.00", 
NHS,Glos Hospitals NHS Foundation Trust,05/04/2022,Regular recharges,Scheduled Recharges from NPX,Gloucestershire Health and Care NHS FT Pr GCS,895519,"80,269.00", 
NHS,Glos Hospitals NHS Foundation Trust,05/04/2022,External Contracts : Other,IT Contracts Shared Service,Phoenix Software Ltd,896937,"65,489.09", 
NHS,Glos Hospitals NHS Foundation Trust,05/04/2022,Purchase Computers/Systems,Capital Project Control,TET Limited t/a Trans Euopean Technology,897540,"119,694.24", 
NHS,Glos Hospitals NHS Foundation Trust,12/04/2022,Rent,Car Parking Glos Hospitals,Saba Infra Gloucestershire Limited,897677,"87,657.60", 
NHS,Glos Hospitals NHS Foundation Trust,05/04/2022,Non - Healthcare - NHS Trusts,Hereford Clinic Rental,HA95059 Wye Valley NHS Trust,897889,"155,586.00", 
NHS,Glos Hospitals NHS Foundation Trust,05/04/2022,Prescribing Control,Payables - Manual,HA79125 NHSBSA,897942,"99,102.87", 
NHS,Glos Hospitals NHS Foundation Trust,20/04/2022,Commercial Sector,Ortho Theatre - Main - GRH,Genmed.me Limited,897958,"77,892.34", 
NHS,Glos Hospitals NHS Foundation Trust,05/04/2022,Training Expenses,Director of Nursing,HA97721 South London And Maudsley NHS Trust,898210,"50,000.00", 
NHS,Glos Hospitals NHS Foundation Trust,05/04/2022,Laboratory Reagents,Haematology / Immunology Lab trustwide - NONPAY,Beckman Coulter United Kingdom Limited,898211,"151,480.48", 
NHS,Glos Hospitals NHS Foundation Trust,05/04/2022,Computer Hardware Purchases,IT Recharges,XMA Limited,898246,"49,505.49", 
NHS,Glos Hospitals NHS Foundation Trust,05/04/2022,Purchase Computers/Systems,Capital Project Control,Keystream Healthcare,898402,"55,444.50", 
NHS,Glos Hospitals NHS Foundation Trust,05/04/2022,Laboratory Reagents,Regional CoVid-19 Testing Centre,Chrystal Consulting Limited,898609,"25,883.05", 
NHS,Glos Hospitals NHS Foundation Trust,05/04/2022,Admin & Clerical - Agency,EPR Config Team,Ideal Health Consultants Limited,898627,"86,922.00", 
NHS,Glos Hospitals NHS Foundation Trust,20/04/2022,Sales Of Goods And Services,Pharmacy - GRH,Alloga UK Limited,898654,"-144,000.00", 
NHS,Glos Hospitals NHS Foundation Trust,05/04/2022,Drugs - Passthrough Expenditure,Hereford Clinic Rental,HA95059 Wye Valley NHS Trust,898697,"416,068.00", 
NHS,Glos Hospitals NHS Foundation Trust,05/04/2022,External Contracts : Other,IT Contracts Shared Service,Netcall Technology Limited,898737,"48,655.20", 
NHS,Glos Hospitals NHS Foundation Trust,05/04/2022,Computer Software / License  Fees,Financial Management,IQVIA Ltd,898844,"25,200.00", 
NHS,Glos Hospitals NHS Foundation Trust,20/04/2022,Other Transport Costs,Patient Transport Services GHX,E-Zec Medical Transport Services Ltd,898850,"30,460.82", 
NHS,Glos Hospitals NHS Foundation Trust,05/04/2022,Rent,Car Parking Glos Hospitals,Saba Infra Gloucestershire Limited,898884,"71,224.32", 
NHS,Glos Hospitals NHS Foundation Trust,05/04/2022,Purchase Computers/Systems,Capital Project Control,XMA Limited,898888,"186,859.62", 
NHS,Glos Hospitals NHS Foundation Trust,05/04/2022,External Consultancy Fees,Strategy & Transformation,exi Project Management South Limited,898994,"32,301.61", 
NHS,Glos Hospitals NHS Foundation Trust,05/04/2022,Laboratory Reagents,Regional CoVid-19 Testing Centre,Cepheid UK Limited,899021,"31,392.00", 
NHS,Glos Hospitals NHS Foundation Trust,05/04/2022,External Consultancy Fees,Control of Infection,SCC Limited,899036,"48,065.57", 
NHS,Glos Hospitals NHS Foundation Trust,05/04/2022,Computer Software / License  Fees,Ophthalmic Imaging,Constellia Public limited,899153,"475,315.20", 
NHS,Glos Hospitals NHS Foundation Trust,05/04/2022,Commercial Sector,Main Theatre - Non Pay only,Genmed.me Limited,899191,"1,568,296.55", 
NHS,Glos Hospitals NHS Foundation Trust,05/04/2022,Contract : Other External,Service Delivery,exi Project Management South Limited,899194,"33,591.49", 
NHS,Glos Hospitals NHS Foundation Trust,05/04/2022,Association & Membership Fees,Histology - CGH,Institute of Biomedical Sciences,899223,"28,000.00", 
NHS,Glos Hospitals NHS Foundation Trust,05/04/2022,Colour Connection,Payables - Manual,Colour Connection,899259,"32,344.49", 
NHS,Glos Hospitals NHS Foundation Trust,05/04/2022,Computer Software / License  Fees,CITS Cyber Team,KPMG LLP,899264,"59,400.00", 
NHS,Glos Hospitals NHS Foundation Trust,26/04/2022,Computer Maintenance,IT Contracts Shared Service,Insight Direct (UK) Limited,899265,"43,238.40", 
NHS,Glos Hospitals NHS Foundation Trust,05/04/2022,External Contracts : Other,Radiology CDC,Cobalt Health,899267,"193,965.00", 
NHS,Glos Hospitals NHS Foundation Trust,12/04/2022,External Contracts : Other,Radiography,Cobalt Health,899272,"49,000.00", 
NHS,Glos Hospitals NHS Foundation Trust,05/04/2022,Training Expenses,Clinical Systems,Quanta Training Limited,899276,"55,440.00", 
NHS,Glos Hospitals NHS Foundation Trust,05/04/2022,Medical & Surgical Equipment Maintenance Contracts,Radiotherapy - Radiography,Supply Chain Coordination Ltd - Maint. (201),899277,"43,786.26", 
NHS,Glos Hospitals NHS Foundation Trust,26/04/2022,X-Ray Equipment : Maintenance,Nuclear Medicine,Ashby GB Ltd,899286,"32,490.00", 
NHS,Glos Hospitals NHS Foundation Trust,05/04/2022,Rates,Rates - CGH,Cheltenham Borough Council,899364,"90,624.00", 
NHS,Glos Hospitals NHS Foundation Trust,05/04/2022,Rates,Rates - GRH,Gloucester City Council,899369,"209,920.00", 
NHS,Glos Hospitals NHS Foundation Trust,20/04/2022,External Contracts : Other,Radiology CDC,Cobalt Health,899385,"27,300.00", 
NHS,Glos Hospitals NHS Foundation Trust,20/04/2022,Consultant Secondment,Upper GI Specialty,Worcestershire Acute Hospital NHS,899388,"70,328.40", 
NHS,Glos Hospitals NHS Foundation Trust,05/04/2022,Rent,Clinical Academy - Undergraduate Management,Markey Student Property Ltd,899430,"58,904.43", 
NHS,Glos Hospitals NHS Foundation Trust,05/04/2022,Rent,Clinical Academy - Undergraduate Management,Markey Student Property Ltd,899431,"136,488.02", 
NHS,Glos Hospitals NHS Foundation Trust,05/04/2022,Purchase Computers/Systems,Capital Project Control,XMA Limited,899457,"104,679.60", 
NHS,Glos Hospitals NHS Foundation Trust,20/04/2022,Purchase Computers/Systems,Capital Project Control,Softcat Ltd,899538,"717,630.43", 
NHS,Glos Hospitals NHS Foundation Trust,26/04/2022,Patients Appliances : Repairs,Patient Appliances,Opcare Limited,899546,"33,669.86", 
NHS,Glos Hospitals NHS Foundation Trust,26/04/2022,Computer Software / License  Fees,Clinical Systems,PCTI Solutions t/as Advanced NFP,899549,"71,862.00", 
NHS,Glos Hospitals NHS Foundation Trust,26/04/2022,Purchase Computers/Systems,Capital Project Control,Insight Direct (UK) Limited,899550,"239,416.26", 
NHS,Glos Hospitals NHS Foundation Trust,08/04/2022,IT software,Capital Project Control,Attend Anywhere (Pty) Limited,900095,"112,316.30", 
NHS,Glos Hospitals NHS Foundation Trust,12/04/2022,NHS Logistics control,Payables - Manual,Supply Chain Coordination Ltd - Consumables,900534,"96,366.57", 
NHS,Glos Hospitals NHS Foundation Trust,20/04/2022,Non - Healthcare - NHS Trusts,Hereford LINAC,HA95059 Wye Valley NHS Trust,900756,"46,071.81", 
NHS,Glos Hospitals NHS Foundation Trust,26/04/2022,Non - Healthcare - NHS Trusts,Hereford Clinic Rental,HA95059 Wye Valley NHS Trust,900760,"30,470.00", 
NHS,Glos Hospitals NHS Foundation Trust,12/04/2022,Contractual Clinical Services,Cardiology Laboratory,AGITO Medical A/S,900821,"31,970.00", 
NHS,Glos Hospitals NHS Foundation Trust,26/04/2022,Medical & Surgical Equipment Maintenance Contracts,Radiotherapy - Radiography,Philips UK and Ireland,900836,"55,104.00", 
NHS,Glos Hospitals NHS Foundation Trust,20/04/2022,Allocate,Payables - Manual,ID Medical Group Limited,901074,"38,191.19", 
NHS,Glos Hospitals NHS Foundation Trust,20/04/2022,Allocate,Payables - Manual,ID Medical Group Limited,901075,"39,708.51", 
NHS,Glos Hospitals NHS Foundation Trust,20/04/2022,Computer Software / License  Fees,IT Contracts Shared Service,Computacenter (UK) Ltd,901162,"480,000.00", 
NHS,Glos Hospitals NHS Foundation Trust,20/04/2022,Purchase Computers/Systems,Capital Project Control,XMA Limited,901174,"57,852.90", 
NHS,Glos Hospitals NHS Foundation Trust,14/04/2022,Barclay Card,Payables - Manual,Barclaycard Commercial,901442,"32,617.50", 
NHS,Glos Hospitals NHS Foundation Trust,14/04/2022,Clinical Negligence,Trustwide Finance,NHS Resolution,901514,"1,937,434.70", 
NHS,Glos Hospitals NHS Foundation Trust,20/04/2022,Agency Consultant - new contract,Anaesthetics - Admin,Ministry of Defence,901683,"49,752.75", 
NHS,Glos Hospitals NHS Foundation Trust,26/04/2022,Laboratory External Tests,Molecular Tests - out of tariff,"Exact Sciences UK, Ltd",901908,"29,160.00", 
NHS,Glos Hospitals NHS Foundation Trust,26/04/2022,Association & Membership Fees,Executive Directors,NHS Providers,901967,"32,547.00", 
